Cogmind - Beta 10.1 @@@ ROGUE MODE // 2020.10.21 @ 19:01:55 Player: CrossedViper Result: Destroyed by H-55 Commando with Gauss Rifle Performance ------------- Evolutions (0) 0 Regions Visited (3) 600 Robots Destroyed (23) 115 Value Destroyed (511) 511 Prototype IDs (23) 460 Alien Tech Used (0) 0 Bonus (255) 255 TOTAL SCORE: 1941 Bonus ------- Aligned with FarCom 300 Friendly Fire -45 Cogmind --------- Core Integrity 0/250 Matter 269/300 Energy 75/100 System Corruption 0% Temperature Cool (0) Movement Treading (180) Ox1 Location -10/Exiles Parts ------- > --- POWER (1) -------- (None) > --- PROPULSION (2) --- Light Treads > --- UTILITY (2) ------ Large Storage Unit Light Armor Plating > --- WEAPON (2) ------- AWS/Gauss > --- INVENTORY (10) --- Light Armor Plating Skeleton Box Supersonic Drone Bay (1/1) Light Cannon Blade Trap Blade Trap Blade Trap Blade Trap Blade Trap Peak State ------------ > --- POWER ------------ Ion Engine > --- PROPULSION ------- Light Treads Light Treads > --- UTILITY ---------- Large Storage Unit Targeting Computer > --- WEAPON ----------- AWS/Gauss > --- INVENTORY -------- Light Armor Plating Light Armor Plating Skeleton Box Supersonic Drone Bay Light Cannon Blade Trap Blade Trap Blade Trap Blade Trap Blade Trap [Rating: 23] Favorites ----------- Power Ion Engine Engine Ion Engine Propulsion Light Treads Treads Light Treads Leg Aluminum Leg Utility Large Storage Unit Storage Large Storage Unit Processor Targeting Computer Protection Light Armor Plating Weapon Heavy EM Pulse Gun Energy Gun Heavy EM Pulse Gun Ballistic Gun Heavy Assault Rifle Ballistic Cannon Light Cannon Build | -11 -10 -10 -10 ------- Run | Scr Mat Min Exi Slots Evolved . | . . . . Power . | . . . . Propulsion . | . . . . Utility . | . . . . Weapon . | . . . . Parts Attached 16 | . 4 8 4 Power 2 | . 1 1 . Engine 2 | . 1 1 . Core . | . . . . Reactor . | . . . . Propulsion 2 | . . 2 . Treads 2 | . . 2 . Leg . | . . . . Wheel . | . . . . Hover . | . . . . Flight . | . . . . Utility 3 | . 1 1 1 Device . | . . . . Storage 1 | . 1 . . Processor 1 | . . 1 . Hackware . | . . . . Protection 1 | . . . 1 Artifact . | . . . . Weapon 9 | . 2 4 3 Energy Gun 5 | . 2 3 . Energy Cannon . | . . . . Ballistic Gun 3 | . . 1 2 Ballistic Cannon 1 | . . . 1 Launcher . | . . . . Special Weapon . | . . . . Impact Weapon . | . . . . Slashing Weapon . | . . . . Piercing Weapon . | . . . . Special Melee Weapon . | . . . . Unidentified Prototypes 1 | . . . 1 Parts Lost 5 | . . 3 2 Power 1 | . . . 1 Propulsion 1 | . . . 1 Utility . | . . . . Weapon 3 | . . 3 . Highest Loss Streak 2 | . . 2 2 Average Slot Usage (%) 95 | . 86 99 90 Engine 13 | . 14 14 13 Treads 16 | . . 16 26 Leg 10 | . 28 11 . Storage 16 | . 15 17 14 Processor 9 | . . 10 14 Energy Gun 16 | . 24 18 7 Ballistic Gun 9 | . 3 8 13 Naked Turns . | . . . . Heaviest Build 31 | 10 31 31 31 Greatest Support 40 | 20 20 40 40 Greatest Overweight (x) 1 | . 1 1 1 Average Overweight (x) . | . . . . Largest Inventory Capacity 12 | . 12 12 10 Average Capacity 9 | . 6 10 10 Most Carried 10 | . 7 10 10 Average Carried 8 | . 6 9 9 Final Capacity 12 | 6 12 10 10 Final Carried 10 | 6 7 10 9 Class Distribution -------------------- 100% | Mutant Dominant Class ---------------- Mutant | -10/Materials Mutant | -10/Mines Mutant | -10/Exiles Resources | -11 -10 -10 -10 ----------- Run | Scr Mat Min Exi Matter Collected 316 | 200 33 83 . Remotely . | . . . . Salvage Created 743 | . 231 312 200 Parts 38 | . 9 23 6 Haulers Intercepted . | . . . . Recyclers Shooed . | . . . . Parts Field Recycled . | . . . . Retrieved Matter . | . . . . Parts Self-Destructed . | . . . . Prevented . | . . . . Kills | -11 -10 -10 -10 ------- Run | Scr Mat Min Exi Combat Hostiles Destroyed 19 | . 4 7 8 Guns 17 | . 3 6 8 Classes Destroyed 8 | . 2 4 2 Worker 1 | . . 1 . Tunneler 1 | . . 1 . Watcher 2 | . 2 . . Swarmer 3 | . . 3 . Grunt 8 | . 4 2 2 Sentry 2 | . . 2 . Demolisher 1 | . . . 1 Assembled 5 | . . . 5 Best Kill Streak 5 | . 2 3 5 Combat Bots Only 5 | . 2 3 5 Max Kills in Single Turn 2 | . 1 2 1 Gunslinging . | . . . . Exploded . | . . . . Melee . | . . . . Uniques/NPCs Destroyed . | . . . . Combat | -11 -10 -10 -10 -------- Run | Scr Mat Min Exi Damage Taken 1387 | . 97 331 959 Core 252 | . . 51 201 Absorbed by Shields . | . . . . Core Remaining (%) 100 | 100 . . . Volleys Fired 32 | . 14 17 1 Largest 2 | . 2 2 1 Hottest 90 | . 90 90 35 Shots Fired 110 | . 28 28 54 Gun 109 | . 28 28 53 Cannon 1 | . . . 1 Launcher . | . . . . Special . | . . . . Kinetic 58 | . 3 1 54 Thermal . | . . . . Explosive . | . . . . Electromagnetic 52 | . 25 27 . Robot Hit Streak 19 | . 6 10 19 Robot Miss Streak 2 | . 1 1 2 Penetration Max . | . . . . Secondary Targets 1 | . . 1 . Max Gunslinging Chain 1 | . . 1 . Autonomous 53 | . . . 53 Shots Hit Robots 89 | . 19 22 48 Core Hits 31 | . 6 11 14 Critical Hits . | . . . . Critical Kills . | . . . . Critical Parts Destroyed . | . . . . Melee Attacks . | . . . . Impact . | . . . . Slashing . | . . . . Piercing . | . . . . Sneak Attacks . | . . . . Combat Hostiles . | . . . . Follow-up Attacks . | . . . . Damage Inflicted 2159 | . 325 366 1468 Guns 2053 | . 283 320 1450 Cannons 15 | . . . 15 Explosions 88 | . 42 46 . Melee . | . . . . Ramming 3 | . . . 3 Kinetic 1465 | . . . 1465 Thermal 88 | . 42 46 . Explosive . | . . . . Electromagnetic 603 | . 283 320 . Impact . | . . . . Slashing . | . . . . Piercing . | . . . . Highest Corruption . | . . . . Average Corruption . | . . . . Corruption Purged . | . . . . Overload Shots . | . . . . Overflow Damage 10 | . 10 . . Projectiles . | . . . . Explosions 10 | . 10 . . Melee . | . . . . Knockbacks . | . . . . Impact . | . . . . Kinetic . | . . . . Secondary . | . . . . Self-Inflicted Damage 45 | . . 45 . Shots 1 | . . 1 . Rammed 1 | . . . 1 Targets Rammed 1 | . . . 1 Kicked . | . . . . Crushed . | . . . . Highest Temperature 177 | . 135 177 . Average Temperature 67 | . 49 84 . Received Heat Transfer 156 | . 54 102 . Siege Activations . | . . . . Robots Corrupted 2 | . 1 1 . Combat Hostiles 2 | . 1 1 . Parts Fried 6 | . 2 4 . Impact Corruptions . | . . . . Robots Melted . | . . . . Combat Hostiles . | . . . . Parts Melted . | . . . . Heat Transferred 150 | . 100 50 . Parts Sabotaged . | . . . . Parts Stolen . | . . . . Parts Stripped . | . . . . Power Chain Reactions 3 | . 2 1 . Missiles Intercepted . | . . . . Alert | -11 -10 -10 -10 ------- Run | Scr Mat Min Exi Peak Influence 194 | . 114 194 . Initial 44 | . . 44 . Average 58 | . 50 60 . Maximum Alert Level . | . . . . Low Security (%) 100 | . 100 100 . Level 1 . | . . . . Level 2 . | . . . . Level 3 . | . . . . Level 4 . | . . . . Level 5 . | . . . . High Security . | . . . . Max Security . | . . . . Squads Dispatched 1 | . 1 . . Investigation . | . . . . Extermination . | . . . . Reinforcement 1 | . 1 . . Assault . | . . . . Garrison . | . . . . Intercept . | . . . . Construction Impeded . | . . . . Haulers Reinforced . | . . . . Stealth | -11 -10 -10 -10 --------- Run | Scr Mat Min Exi Distress Signals . | . . . . Communications Jammed . | . . . . Distress Signals . | . . . . Times Spotted 37 | . 7 7 23 Peak Tracking Total 10 | . 3 3 10 Tactical Retreats 2 | . . . 2 Traps | -11 -10 -10 -10 ------- Run | Scr Mat Min Exi Traps Triggered . | . . . . Indirectly . | . . . . Trap Hack Attempts . | . . . . Triggered . | . . . . Disarmed . | . . . . Reprogrammed . | . . . . Reused . | . . . . Traps Extracted . | . . . . Installed . | . . . . Triggered . | . . . . Machines | -11 -10 -10 -10 ---------- Run | Scr Mat Min Exi Machines Disabled 2 | . . . 2 Max in Single Turn 1 | . . . 1 Machines Sabotaged . | . . . . Garrisons Compromised . | . . . . Overloaded Fab Kills . | . . . . Fab Network Shutdowns . | . . . . Hacking | -11 -10 -10 -10 --------- Run | Scr Mat Min Exi Machines Accessed 1 | . . . 1 Terminals . | . . . . Fabricators . | . . . . Repair Stations . | . . . . Recycling Units . | . . . . Scanalyzers . | . . . . Garrison Access . | . . . . Total Hacks 1 | . . . 1 Successful 1 | . . . 1 Failed . | . . . . Catastrophic . | . . . . Database Lockouts . | . . . . Manual 1 | . . . 1 Terminals . | . . . . Fabricators . | . . . . Repair Stations . | . . . . Recycling Units . | . . . . Scanalyzers . | . . . . Garrison Access . | . . . . Terminal Hacks 1 | . . . 1 EX-Prototype ID Bank 1 | . . . 1 Fabricator Hacks . | . . . . Repair Station Hacks . | . . . . Recycling Unit Hacks . | . . . . Scanalyzer . | . . . . Garrison Access Hacks . | . . . . Unauthorized Hacks . | . . . . Terminals . | . . . . Fabricators . | . . . . Repair Stations . | . . . . Recycling Units . | . . . . Scanalyzers . | . . . . Garrison Access . | . . . . Data Cores Recovered . | . . . . Used . | . . . . Hacking Detections . | . . . . Full Trace Events . | . . . . Feedback Events . | . . . . Feedback Blocked . | . . . . Robot Schematics Acquired . | . . . . Robots Built . | . . . . Matter . | . . . . Time . | . . . . Total Robot Build Rating . | . . . . Part Schematics Acquired . | . . . . Parts Built . | . . . . Matter . | . . . . Time . | . . . . Total Part Build Rating . | . . . . Parts Repaired . | . . . . Time . | . . . . Parts Recycled . | . . . . Recycled Matter . | . . . . Retrieved Matter . | . . . . Retrieved Components . | . . . . Parts Scanalyzed . | . . . . Part Schematics Acquired . | . . . . Parts Damaged . | . . . . Bothacking | -11 -10 -10 -10 ------------ Run | Scr Mat Min Exi Used RIF Installer . | . . . . Robots Hacked . | . . . . Non-combat . | . . . . Combat . | . . . . Robot Hacks Applied . | . . . . Relay Couplers Released . | . . . . Robots Rewired . | . . . . Allies Hacked . | . . . . Hacks Repelled . | . . . . Allies | -11 -10 -10 -10 -------- Run | Scr Mat Min Exi Total Allies . | . . . . Largest Group . | . . . . Highest-Rated Group . | . . . . Highest-Rated Ally . | . . . . Total Orders . | . . . . Ally Attacks . | . . . . Total Damage . | . . . . Kills . | . . . . Allies Corrupted . | . . . . Allies Melted . | . . . . Intel | -11 -10 -10 -10 ------- Run | Scr Mat Min Exi Robot Analysis Total . | . . . . Derelict Logs Recovered 1 | . . 1 . Drone Launches . | . . . . Drone Recoveries . | . . . . Exploration | -11 -10 -10 -10 ------------- Run | Scr Mat Min Exi Turns Passed 1532 | . 209 964 359 Spaces Moved 892 | 1 120 565 206 Core . | . . . . Treads 560 | . . 354 206 Legs 332 | 1 120 211 . Wheels . | . . . . Hover . | . . . . Flight . | . . . . Fastest Speed 120 | 120 120 150 160 Average Speed 152 | 120 122 156 160 Slowest Speed 180 | 120 150 160 180 Overloaded Moves . | . . . . Propulsion Burnouts . | . . . . Robots Hopped . | . . . . Cave-ins Triggered . | . . . . Exploration Rate (%) 44 | 2 28 98 49 Regions Visited 3 Branch Regions 2 Pre-discovered Areas 1 | . . 1 . Known Exits Taken . | . . . . Unknown Exits Taken 3 | 1 1 1 . Scrap Searched 2 | . . 2 . Spaces Dug . | . . . . Terrain Destroyed 13 | . 9 4 . Melee . | . . . . Projectile . | . . . . AOE 13 | . 9 4 . Terrain Rammed . | . . . . Walls Destroyed . | . . . . Machines Disabled . | . . . . Actions | -11 -10 -10 -10 --------- Run | Scr Mat Min Exi Total 1013 | . 157 622 234 Wait 33 | . 12 9 12 Move 889 | . 119 564 206 Hop . | . . . . Pick Up 21 | . 3 15 3 Fast Attach 4 | . 2 . 2 Attach 7 | . . 5 2 Detach . | . . . . Swap 5 | . 2 3 . Drop 21 | . 5 9 7 Fire 32 | . 14 17 1 Melee . | . . . . Ram . | . . . . Kick . | . . . . Crush 1 | . . . 1 Escape Stasis . | . . . . Rewire . | . . . . Trap . | . . . . Miscellaneous . | . . . . Route ------- -11/Scrapyard -10/Materials (discovered 2 exits: [*Mat] / [*Min]) -10/Mines (discovered 3 exits: [*Mat x2] / *Exi) -10/Exiles History --------- Turn | Location | Event 1 | -11/Scrapyard | Discovered new exit (range 0) 1 | -11/Scrapyard | Entered Materials 77 | -10/Materials | Discovered new exit (range 15) 186 | -10/Materials | Discovered new exit (range 8) 210 | -10/Materials | Entered Mines 312 | -10/Mines | Build established: Mutant 346 | -10/Mines | Discovered new exit (range 7) 583 | -10/Mines | Found a hidden stash of uninstalled traps 809 | -10/Mines | Learned Materials stockpile data 956 | -10/Mines | Discovered new exit (range 8) 1133 | -10/Mines | Learned location of Storage (-7) 1167 | -10/Mines | Deemed a non-threat by the Exiles lab entrance 1167 | -10/Mines | Discovered new exit (range 5) 1174 | -10/Mines | Entered Exiles 1214 | -10/Exiles | Met 8R-AWN 1240 | -10/Exiles | Met EX-HEX 1286 | -10/Exiles | Met EX-BIN 1306 | -10/Exiles | Aligned with FarCom system 1307 | -10/Exiles | Given EX-Vault access code 1346 | -10/Exiles | Opened EX-Vault 1356 | -10/Exiles | Found Prototype Ballistic Gun 1356 | -10/Exiles | Identified AWS/Gauss 1368 | -10/Exiles | Found Skeleton Box 1373 | -10/Exiles | Found Supersonic Drone Bay 1409 | -10/Exiles | Warned to stay clear of 0b10 Research branches 1416 | -10/Exiles | Exiles lab attacked by MAIN.C 1451 | -10/Exiles | Attacked by the Exiles 1474 | -10/Exiles | Core integrity fell below 50% 1503 | -10/Exiles | Core integrity fell below 20% 1533 | -10/Exiles | Destroyed by H-55 Commando with Gauss Rifle Last Messages --------------- 01513_ HV Slug penetrates Machine. 01513_ Machine disabled. 01516_ Slug penetrates 8R-AWN. 01517_ Penetrated by HV Slug. 01517_ Slug penetrates 8R-AWN. 01523_ Penetrated by HV Slug. 01523_ HV Slug penetrates Machine. 01523_ Penetrated by HV Slug. 01525_ 8R-AWN destroyed. 01526_ Ion Engine destroyed. 01526_ G-34 Mercenary destroyed. 01527_ D-53 Grenadier destroyed. 01528_ The unstable cave ceiling collapses. 01528_ Slug penetrates G-34 Mercenary. 01528_ Destroyed Heat Sink. 01529_ Penetrated by Slug. 01530_ Slug penetrates G-34 Mercenary. 01531_ G-34 Mercenary destroyed. 01532_ Discarded Targeting Computer. 01533_ Penetrated by Slug. Map ----- +----------------------------------------------------+ | ????????????????????????????#"###??# #?#"""""" | | ???????????????????????????????????# #?#"""""" | | ???????????????????????????????????# #?#"""""" | | ??????????????????????????????????## ###"" """ | | ??????????????????????????????????#" """ | | ??????????????????????????????????#" "" | | ??????????????????????????????????#" "" | | ??????????????????????????????????#" "" | | ??????????????????????????????????#" "" | | ??????????????????????????????????#" "" | | ??????????????????????????????????## "" | | ?????????????????????" ????????????# "" | | ?????????????????????" ????????????#" "X" "" | | ?????????????????????" ????????????#" """ | | ????????????????????? ???????????#" """""""" | | ?????????????????????" ??????????##" ######### | | ?????????????????????# ?????????##"" #???????? | | ???????????????????### ###?######"" #???????? | | ????????????"""#####X# #"###""""""" ##??????? | | ???????????? """" " "" ##???### | | ???????????? """ " #####"" | | ??????????? " | | ??????????? | | ??????????# | | ???????????# | | ????????????# @ | | ?????????????#" % [ = | | ?????????????#""" % !=% | | ?????????????#" #g% % | | ?????????????"" " ! | | ?????????????""" ""##### " | | ??????????????" """##??????######" | | ??????????????" ""#????????????#"" | | ????????????? ##????????????"""" | | ?????????????" !!! ????????????? | | ??????????????!! !! ???????????? | | ?????????????? &% !! ???????????? | | ???????????????""![ ??????????? | | ???????????????? !!t ??????????? | | ????????????????? ???????????? "" | | ???????????????????? ???????????????"" " " | | ???????????????????????? ????????????????????""" " | | ???????????????????????????????????????????????""" | | ?????????????????????????????????????????????????? | | ?????????????????????????????????????????????????? | | ?????????????????????????????????????????????????? | | ?????????????????????????????????????????????????? | | ?????????????????????????????????????????????????? | | ?????????????????????????????????????????????????? | | ?????????????????????????????????????????????????? | +----------------------------------------------------+ Best States ------------- Heat Dissipation 25 Energy Generation 10 Energy Capacity 250 Matter Stores 300 Matter Capacity 300 Sight Range 16 Terrain Scan Density 10 Evasion (%) 40 Targeting Accuracy 5 Recoil Reduction 2 Item Schematics ----------------- None Robot Schematics ------------------ None Fabricated ------------ Nothing Alien Tech Used ----------------- None Achievements -------------- None Challenges ------------ None Game ------ Seed FactoryMinesnifferPick Manual? 0 Play Time 00:08:51 Cumulative 91.6 hours Start 2020.10.21 @ 18:52:20 End 2020.10.21 @ 19:01:55 Sessions 1 Manual Loads 0 Difficulty Rogue Special Mode None Game No. 95 Rogue 94 Adventurer 0 Explorer 1 Win Type - Total 0 Types 0/0/0/0/0/0/0/0/0 Lore% 51 Gallery% 80 Achievement% 60 Wizard Run 0 Options --------- ASCII 0 Keyboard 0 Movement Numpad Keybinds 0 Fullscreen 1 Font 18/X11Bold Map View 76x50 Tactical HUD 1 Map Filters NONE Filters NONE Steam 1 RUN: 97528767-7f49-4b56-9967-77bcadef52fa